bitfinex-derivatives/quotes_BTCF0:USTF0_20210707
["timestamp","ask_amount","ask_price","bid_price","bid_amount"]
[1625620440355,2.28920282,34201.0,34200.0,0.00444977]
[1625620441433,1.08727722,34201.0,34200.0,0.00444977]
[1625620442811,0.057,34201.0,34200.0,0.00444977]
[1625620443534,1.08725296,34201.0,34200.0,0.00444977]
[1625620443833,0.057,34201.0,34200.0,0.00444977]
[1625620444253,1.08729189,34201.0,34200.0,0.00444977]
[1625620444493,0.057,34201.0,34200.0,0.00444977]
[1625620446299,1.0873636,34201.0,34200.0,0.00444977]
[1625620446541,0.057,34201.0,34200.0,0.00444977]
[1625620448042,1.27093917,34202.0,34200.0,0.00444977]
[1625620448222,1.03045538,34206.0,34201.0,1.01087164]
[1625620448343,1.03045538,34206.0,34201.0,1.25144708]
[1625620448526,1.03042222,34207.0,34203.0,1.01041736]
[1625620448703,1.44270608,34209.0,34203.0,1.01041736]
[1625620448704,1.03039919,34208.0,34206.0,4.91505]
[1625620449244,1.27095786,34209.0,34207.0,0.0044486]
[1625620450385,1.27095786,34209.0,34208.0,0.48115088]
[1625620450805,1.27095786,34209.0,34208.0,0.48559935]
[1625620451348,1.030853,34210.0,34208.0,0.48559935]
[1625620451467,1.27129359,34214.0,34208.0,4.0124568]
[1625620451644,1.03071815,34214.0,34208.0,4.0124568]
[1625620451766,1.03096037,34215.0,34213.0,1.31444033]
[1625620452006,1.03066084,34217.0,34214.0,1.00613908]
[1625620452186,1.03066084,34217.0,34214.0,1.01058655]
[1625620452305,1.03066084,34217.0,34216.0,0.48115088]
[1625620452605,1.03066084,34217.0,34216.0,0.48559834]
[1625620452913,1.03066084,34217.0,34216.0,4.34299834]
[1625620453630,1.03066084,34217.0,34216.0,4.33855088]
[1625620453751,2.23328429,34217.0,34216.0,4.33855088]
[1625620453932,1.03066084,34217.0,34216.0,4.33855088]
[1625620454713,1.03066084,34217.0,34216.0,4.34299836]
[1625620455013,1.03066084,34217.0,34216.0,4.33855088]
[1625620456035,1.27082935,34218.0,34216.0,4.33855088]
[1625620456334,0.24057544,34218.0,34216.0,4.33855088]
[1625620457297,0.24057544,34218.0,34216.0,5.34413366]
[1625620457776,0.24057544,34218.0,34216.0,4.33855088]
[1625620461627,0.24057544,34218.0,34216.0,5.34215461]
[1625620462347,0.24057544,34218.0,34217.0,1.00334139]
[1625620464086,0.24057544,34221.0,34217.0,1.00334139]
[1625620464269,0.24057544,34221.0,34218.0,1.0018875]
[1625620464688,0.24057544,34221.0,34220.0,0.47795544]
[1625620465772,1.02769539,34227.0,34220.0,0.47795544]
[1625620466189,0.24057544,34228.0,34220.0,0.47795544]
[1625620466611,0.08,34230.0,34227.0,0.48115088]
[1625620466792,0.08,34230.0,34227.0,0.76787088]
[1625620468236,0.08,34230.0,34229.0,3.6965]
[1625620471309,0.24057544,34235.0,34229.0,3.6965]
[1625620471428,0.74067149,34236.0,34229.0,3.6965]
[1625620471429,0.057,34236.0,34229.0,3.6965]
[1625620471547,0.92424265,34238.0,34229.0,3.6965]
[1625620471669,0.24057544,34238.0,34229.0,3.6965]
[1625620471847,0.68363,34239.0,34229.0,3.6965]
[1625620472027,0.68313943,34241.0,34229.0,3.6965]
[1625620472328,0.68312867,34242.0,34229.0,4.1965]
[1625620472449,1.19534711,34245.0,34230.0,0.66239866]
[1625620472450,0.6831191,34244.0,34230.0,0.66239866]
[1625620472689,0.6831191,34244.0,34243.0,0.48115088]
[1625620472868,0.6831191,34244.0,34243.0,0.78606088]
[1625620473952,0.68269667,34245.0,34243.0,0.78606088]
[1625620475032,0.73924947,34246.0,34243.0,0.78606088]
[1625620475695,0.73924947,34246.0,34243.0,0.48115088]
[1625620476235,0.68232166,34245.0,34243.0,0.48115088]
[1625620476354,0.057,34244.0,34243.0,0.48115088]
[1625620476655,0.68232166,34245.0,34243.0,5.70155088]
[1625620476775,0.68229769,34246.0,34243.0,5.70155088]
[1625620477017,0.057,34245.0,34243.0,0.48115088]
[1625620477317,0.057,34245.0,34242.0,0.24057544]
[1625620477438,0.73891393,34245.0,34229.0,3.6965]
[1625620477740,0.057,34243.0,34229.0,3.6965]
[1625620478340,0.73895874,34243.0,34229.0,3.6965]
[1625620478703,0.29757544,34240.0,34239.0,0.24057544]
[1625620478820,0.60424544,34240.0,34239.0,0.24057544]
[1625620480745,0.84482088,34240.0,34239.0,0.24057544]
[1625620480865,0.78782088,34240.0,34239.0,0.24057544]
[1625620481167,0.84482088,34240.0,34239.0,0.24057544]
[1625620482727,0.84482088,34240.0,34232.0,0.24057544]
[1625620482859,0.84482088,34240.0,34228.0,0.24057544]
[1625620483272,0.057,34232.0,34228.0,0.24057544]
[1625620484292,0.29641,34233.0,34228.0,0.24057544]
[1625620484593,0.35341,34233.0,34228.0,0.24057544]
[1625620484714,0.59398544,34233.0,34232.0,0.24057544]
[1625620485016,0.53698544,34233.0,34232.0,0.24057544]
[1625620485373,0.59398544,34233.0,34232.0,0.24057544]
[1625620486817,0.83456088,34233.0,34232.0,0.24057544]
[1625620487537,0.77756088,34233.0,34232.0,0.24057544]
[1625620488681,0.77756088,34233.0,34232.0,0.24502791]
[1625620493551,0.83456088,34233.0,34232.0,0.24502791]
[1625620496915,0.77756088,34233.0,34232.0,0.24502791]
[1625620497813,0.08545806,34239.0,34232.0,0.24502791]
[1625620498112,0.14245806,34239.0,34232.0,0.24502791]
[1625620498232,0.14245806,34239.0,34233.0,0.0044509]
[1625620498774,0.08549915,34238.0,34233.0,0.0044509]
[1625620498954,0.057,34237.0,34236.0,0.24057544]
[1625620499195,0.057,34237.0,34236.0,0.24502646]
[1625620500458,0.14255542,34237.0,34236.0,0.24502646]
[1625620501119,0.057,34237.0,34236.0,0.24502646]
[1625620502624,0.5698058,34237.0,34236.0,0.24502646]
[1625620503709,0.58328493,34237.0,34236.0,0.24502646]
[1625620503950,0.08567347,34237.0,34236.0,0.24502646]
[1625620504490,0.08567347,34237.0,34236.0,0.51747646]
[1625620504734,0.08566997,34238.0,34236.0,0.51747646]
[1625620505331,0.08566997,34238.0,34237.0,0.00444819]
[1625620505873,0.57060095,34238.0,34237.0,0.00444819]
[1625620506113,0.51360095,34238.0,34237.0,0.00444819]
[1625620506234,0.57060095,34238.0,34237.0,0.00444819]
[1625620506353,0.057,34238.0,34237.0,0.00444819]
[1625620506833,0.5706027,34238.0,34237.0,0.00444819]
[1625620507973,1.25605652,34238.0,34237.0,0.00444819]
[1625620508514,0.5706027,34238.0,34237.0,0.00444819]
[1625620509235,1.25605423,34238.0,34237.0,0.00444819]
[1625620511098,2.28483779,34238.0,34237.0,0.00444819]
[1625620512540,1.25605423,34238.0,34237.0,0.00444819]
[1625620513021,2.28507919,34238.0,34237.0,0.00444819]
[1625620513503,1.25605423,34238.0,34237.0,0.00444819]
[1625620513683,2.28508955,34238.0,34237.0,0.00444819]
[1625620515065,2.62075738,34238.0,34237.0,0.00444819]
[1625620515364,3.82178523,34238.0,34237.0,0.00444819]
[1625620515964,3.82178523,34238.0,34234.0,0.00444814]
[1625620516084,3.82178523,34238.0,34237.0,0.00444811]
[1625620516326,3.82178523,34238.0,34236.0,0.00444806]
[1625620516564,2.28846007,34237.0,34236.0,0.00444806]
[1625620516925,2.28846007,34237.0,34236.0,0.2450235]
[1625620517166,2.30193786,34237.0,34236.0,0.2450235]
[1625620517708,2.23146007,34237.0,34236.0,0.32807512]
[1625620518188,2.23146007,34237.0,34236.0,0.74326892]
[1625620518428,2.23146007,34237.0,34236.0,0.2450235]
[1625620518550,2.57661007,34237.0,34236.0,0.2450235]
[1625620518669,3.83546678,34237.0,34236.0,0.2450235]
[1625620518795,3.84894564,34237.0,34236.0,0.2450235]
[1625620519271,5.22301225,34237.0,34236.0,0.2450235]
[1625620519809,9.58031225,34237.0,34236.0,0.2450235]
[1625620520590,5.22301225,34237.0,34236.0,0.2450235]
[1625620520953,5.22301225,34237.0,34236.0,0.32819907]
[1625620520954,3.84894564,34237.0,34236.0,0.32819907]
[1625620521134,5.22441093,34237.0,34236.0,0.2450235]
[1625620521910,5.22441093,34237.0,34236.0,0.00444806]
[1625620522150,6.77193798,34237.0,34236.0,0.00444806]
[1625620522570,6.77193798,34237.0,34233.0,0.00444961]
[1625620522810,6.77193798,34237.0,34236.0,0.00444939]
[1625620522931,0.6562043,34237.0,34236.0,0.00444939]
[1625620523050,0.64272544,34237.0,34234.0,0.00444945]
[1625620523232,7.00763953,34237.0,34234.0,0.00444945]
[1625620523351,0.65620234,34237.0,34236.0,0.00444945]
[1625620523591,0.65620234,34237.0,34233.0,0.08339838]
[1625620523592,0.01347682,34236.0,34235.0,0.00444941]
[1625620523835,2.20433943,34237.0,34236.0,0.00444938]
[1625620524074,7.00752055,34237.0,34235.0,0.00444935]
[1625620524313,4.81666787,34236.0,34234.0,0.00444941]
[1625620524434,0.057,34235.0,34234.0,0.00444941]
[1625620524553,4.87379831,34235.0,34234.0,0.00444941]
[1625620524675,4.88727508,34235.0,34234.0,0.00444941]
[1625620524924,5.12785052,34235.0,34234.0,0.00444941]
[1625620525041,5.12785052,34235.0,34234.0,0.08787235]
[1625620525763,5.12785052,34235.0,34234.0,0.00444941]
[1625620526181,5.12785052,34235.0,34234.0,0.50504418]
[1625620527023,5.12785052,34235.0,34234.0,0.74561962]
[1625620527383,5.11437375,34235.0,34234.0,0.74561962]
[1625620527684,5.1278497,34235.0,34234.0,0.74561962]
[1625620528945,5.1278497,34235.0,34234.0,0.57948105]
[1625620529065,5.1278497,34235.0,34234.0,0.33890561]
[1625620529184,6.6774334,34235.0,34234.0,0.08808745]
[1625620530336,6.6774334,34235.0,34232.0,0.41869011]
[1625620530686,6.6774334,34235.0,34231.0,0.50242814]
[1625620530687,0.057,34232.0,34231.0,0.08377094]
[1625620531167,0.55162924,34232.0,34229.0,0.08383849]
[1625620531286,0.55162924,34232.0,34227.0,1.17373886]
[1625620531287,6.3724401,34230.0,34227.0,0.08389893]
[1625620531406,0.057,34229.0,34227.0,0.08389893]
[1625620531526,0.057,34229.0,34226.0,0.08389455]
[1625620531527,6.36874942,34228.0,34226.0,0.08389455]
[1625620531706,0.057,34227.0,34226.0,0.08389455]
[1625620531887,6.42575919,34227.0,34225.0,0.41947154]
[1625620532006,4.87665066,34226.0,34225.0,0.08389334]
[1625620532127,9.29065066,34226.0,34225.0,0.08389334]
[1625620532247,9.29065066,34226.0,34224.0,0.83895881]
[1625620532248,10.8397303,34226.0,34224.0,0.41951795]
[1625620532489,4.81975049,34225.0,34224.0,0.08392644]
[1625620532610,4.87675049,34225.0,34224.0,0.08392644]
[1625620532729,6.42586095,34225.0,34224.0,0.08392644]
[1625620533031,6.42586095,34225.0,34223.0,0.08395861]
[1625620533209,5.59858052,34224.0,34223.0,0.08395861]
[1625620533755,5.59858052,34224.0,34222.0,0.41972152]
[1625620534058,5.16087354,34223.0,34222.0,0.41972152]
[1625620534176,5.16087354,34223.0,34222.0,0.33583442]
[1625620534900,5.16087354,34223.0,34222.0,0.41980968]
[1625620535807,5.16087354,34223.0,34222.0,0.08397526]
[1625620535918,6.70844928,34223.0,34219.0,0.08401384]
[1625620536219,4.87201758,34220.0,34219.0,0.08401384]
[1625620537123,5.11259302,34220.0,34217.0,0.08403146]
[1625620537423,0.057,34217.0,34216.0,0.08404042]
[1625620537664,3.493749,34217.0,34215.0,0.08396729]
[1625620537904,0.057,34217.0,34215.0,0.08396729]
[1625620538144,0.057,34217.0,34214.0,0.41985332]
[1625620538686,3.43683255,34215.0,34214.0,0.41985332]
[1625620538805,3.73335255,34215.0,34214.0,0.41985332]
[1625620538926,3.73335255,34215.0,34214.0,0.08398417]
[1625620539166,4.45507887,34215.0,34214.0,0.08398417]
[1625620539407,4.45507887,34215.0,34214.0,0.42015034]
[1625620539768,3.2522562,34215.0,34213.0,0.08401082]
[1625620539948,2.28933691,34214.0,34213.0,0.08401082]
[1625620540488,6.02023691,34214.0,34212.0,0.42005032]
[1625620540610,3.7879,34214.0,34213.0,0.08398851]
[1625620540729,3.7879,34214.0,34213.0,8.851e-05]
[1625620540852,6.02012592,34214.0,34212.0,0.33604327]
[1625620540972,6.02012592,34214.0,34209.0,1.00788314]
[1625620541090,0.48115088,34210.0,34209.0,1.00788314]
[1625620541211,0.53815088,34210.0,34209.0,1.00788314]
[1625620541391,0.53815088,34210.0,34208.0,1.00822818]
[1625620541572,0.53815088,34210.0,34207.0,1.00756607]
[1625620542595,0.53815088,34210.0,34208.0,1.00793342]
[1625620542894,0.53815088,34210.0,34207.0,1.00813128]
[1625620543198,0.48115088,34210.0,34208.0,1.00787572]
[1625620543554,0.48115088,34210.0,34206.0,1.17544086]
[1625620543555,0.48115088,34210.0,34207.0,1.00728338]
[1625620543675,0.53815088,34210.0,34207.0,1.00728338]
[1625620544037,0.53815088,34210.0,34208.0,1.00699373]
[1625620545659,0.53815088,34210.0,34206.0,1.17544086]
[1625620545660,0.53815088,34210.0,34207.0,1.00659028]
[1625620546562,0.53815088,34210.0,34206.0,1.00649455]
[1625620546682,0.48115088,34210.0,34206.0,1.00649455]
[1625620546862,0.48115088,34210.0,34207.0,1.00603794]
[1625620547106,0.53815088,34210.0,34207.0,1.00603794]
[1625620547345,0.53815088,34210.0,34206.0,1.00643053]
[1625620549268,0.057,34208.0,34206.0,1.00643053]
[1625620550108,0.39874,34208.0,34206.0,1.00643053]
[1625620550468,0.39874,34208.0,34205.0,1.24599514]
[1625620551191,0.29757544,34206.0,34205.0,1.24599514]
[1625620551673,0.29757544,34206.0,34205.0,1.25044833]
[1625620553537,0.29757544,34206.0,34205.0,0.24057544]
[1625620553840,0.29757544,34206.0,34204.0,1.00510315]
[1625620554259,0.29757544,34206.0,34205.0,0.16761918]
[1625620555223,0.29757544,34206.0,34205.0,0.40819462]
[1625620557266,0.29757544,34206.0,34205.0,0.41264812]
[1625620558108,0.24057544,34206.0,34205.0,0.58222894]
[1625620558229,0.17112401,34214.0,34205.0,0.58222894]
[1625620558408,0.17112057,34215.0,34205.0,1.58692787]
[1625620558589,0.17111243,34216.0,34208.0,0.16742659]
[1625620558828,0.17111243,34216.0,34209.0,0.00445034]
[1625620559071,0.057,34215.0,34209.0,0.00445034]
[1625620559188,0.057,34215.0,34208.0,0.0044504]
[1625620559309,0.22810458,34215.0,34214.0,0.24057544]
[1625620559489,0.22810458,34215.0,34214.0,0.47427544]
[1625620559669,0.22810458,34215.0,34214.0,0.47872164]
[1625620560512,0.22810458,34215.0,34214.0,0.47427544]
[1625620560754,0.22810458,34215.0,34214.0,0.23814626]
[1625620561053,0.22810458,34215.0,34214.0,0.2337]
[1625620561234,0.22810458,34215.0,34214.0,0.23814624]
[1625620561411,0.46868002,34215.0,34214.0,0.23814624]
[1625620561772,0.29757544,34215.0,34214.0,0.23814624]
[1625620562795,0.24057544,34215.0,34214.0,0.23814624]
[1625620563277,0.29757544,34215.0,34214.0,0.23814624]
[1625620564481,0.3110717,34215.0,34214.0,0.23814624]
[1625620564602,0.4821637,34215.0,34214.0,0.23814624]
[1625620564720,0.46866744,34215.0,34214.0,0.23814624]
[1625620565321,0.29757544,34215.0,34214.0,0.23814624]
[1625620565441,0.31107132,34215.0,34214.0,0.23814624]
[1625620565561,0.31107132,34215.0,34214.0,0.00444624]
[1625620566042,0.25407132,34215.0,34211.0,0.00444621]
[1625620566225,0.24057544,34215.0,34214.0,0.00444609]
[1625620566525,0.17108478,34219.0,34214.0,0.30974]
[1625620566765,0.4116539,34220.0,34215.0,0.00444553]
[1625620567065,1.14149048,34222.0,34215.0,0.00444553]
[1625620567184,1.14149048,34222.0,34219.0,5.2292]
[1625620567305,0.01349395,34221.0,34219.0,5.2292]
[1625620567605,0.17109048,34222.0,34220.0,0.00444521]
[1625620567786,0.41167791,34224.0,34220.0,0.00444521]
[1625620568028,0.24057544,34224.0,34220.0,0.00444521]
[1625620568566,0.057,34223.0,34220.0,0.00444521]
[1625620568746,0.22814953,34223.0,34220.0,0.00444521]
[1625620568866,0.17114953,34223.0,34220.0,0.00444521]
[1625620569470,0.17114953,34223.0,34222.0,0.53050544]
[1625620569833,0.17114953,34223.0,34222.0,0.53495062]
[1625620569951,0.057,34223.0,34222.0,0.29437518]
[1625620570074,0.057,34223.0,34222.0,0.28993]
[1625620570193,1.08340608,34223.0,34222.0,0.28993]
[1625620570611,1.08340608,34223.0,34217.0,0.24057544]
[1625620570973,0.22824071,34219.0,34218.0,0.00444558]
[1625620571150,0.057,34219.0,34218.0,0.00444558]
[1625620571392,1.32422389,34219.0,34218.0,0.00444558]
[1625620571572,1.32422389,34219.0,34217.0,0.24057544]
[1625620571930,1.02672211,34218.0,34217.0,0.24057544]
[1625620572350,0.057,34218.0,34217.0,0.24057544]
[1625620572591,1.02694175,34218.0,34217.0,0.24057544]
[1625620573854,1.02694175,34218.0,34217.0,0.24502142]
[1625620574636,1.08394175,34218.0,34217.0,0.24502142]
[1625620575599,1.02694175,34218.0,34217.0,0.24502142]
[1625620576021,1.26828287,34219.0,34217.0,0.24502142]
[1625620576200,1.26828287,34219.0,34217.0,0.51877142]
[1625620576563,0.24057544,34219.0,34218.0,0.00444557]
[1625620576802,0.46903674,34219.0,34218.0,0.00444557]
[1625620577044,0.29757544,34219.0,34218.0,0.00444557]
[1625620577643,0.24057544,34219.0,34218.0,0.00444557]
[1625620577763,1.2689581,34219.0,34218.0,0.00444557]
[1625620578005,0.24057544,34219.0,34218.0,0.00444557]
[1625620578185,0.41212548,34219.0,34218.0,0.00444557]
[1625620578906,0.41212548,34219.0,34218.0,0.17292256]
[1625620580291,0.24057544,34219.0,34218.0,0.17292256]
[1625620580652,0.24057544,34219.0,34218.0,0.00444557]
[1625620582576,0.24057544,34219.0,34218.0,0.17336425]
[1625620582753,0.24057544,34219.0,34218.0,0.00444557]
[1625620584557,0.24057544,34219.0,34218.0,0.28116557]
[1625620585578,1.27139512,34219.0,34218.0,1.29584115]
[1625620586539,1.27139512,34219.0,34218.0,0.28116557]
[1625620586782,1.27139512,34219.0,34218.0,1.29501479]
[1625620586962,1.27139512,34219.0,34218.0,0.28116557]
[1625620587622,2.47489242,34219.0,34218.0,0.28116557]
[1625620587742,2.53189242,34219.0,34218.0,0.28116557]
[1625620587985,2.47489242,34219.0,34218.0,0.28116557]
[1625620588527,2.47489242,34219.0,34218.0,0.00444557]
[1625620588652,2.53189242,34219.0,34218.0,0.00444557]
[1625620589069,2.47489242,34219.0,34218.0,0.00444557]
[1625620589490,2.47489242,34219.0,34218.0,1.01982041]
[1625620591893,2.47489242,34219.0,34218.0,2.20422275]
[1625620592795,1.27139512,34219.0,34218.0,2.20422275]
[1625620592917,1.03081968,34219.0,34218.0,2.20422275]
[1625620593037,1.03235479,34220.0,34218.0,3.55671096]
[1625620593276,0.17219353,34220.0,34219.0,3.54757342]
[1625620593461,0.17218716,34221.0,34219.0,5.07228611]
[1625620593697,0.1721833,34223.0,34220.0,5.065485]
[1625620593816,0.1721833,34223.0,34220.0,5.83790588]
[1625620593937,0.1721833,34223.0,34222.0,3.54516188]
[1625620594176,0.17211269,34224.0,34222.0,3.54961106]
[1625620594478,0.17211269,34224.0,34223.0,3.54423912]
[1625620594595,0.17211269,34224.0,34223.0,3.54868814]
[1625620595078,0.17210934,34225.0,34223.0,3.54868814]
[1625620595257,0.17210934,34225.0,34224.0,3.54402215]
[1625620595378,0.17210934,34225.0,34224.0,3.54847105]
[1625620595862,0.17210934,34225.0,34224.0,3.78904649]
[1625620595980,0.17202897,34227.0,34224.0,3.78904649]
[1625620596219,0.1720273,34228.0,34226.0,3.54006691]
[1625620596399,0.1720273,34228.0,34227.0,3.53945281]
[1625620596519,0.1720273,34228.0,34227.0,3.77640281]
[1625620596759,0.1720273,34228.0,34227.0,3.78085115]
[1625620596879,0.41252354,34229.0,34227.0,8.17295115]
[1625620597120,0.41252354,34229.0,34228.0,2.19026002]
[1625620597242,0.41252354,34229.0,34228.0,2.19470817]
[1625620597361,0.41252354,34229.0,34228.0,3.54257977]
[1625620597362,0.24057544,34229.0,34228.0,3.54257977]
[1625620597486,1.03082973,34232.0,34228.0,3.54257977]
[1625620597603,1.03073175,34233.0,34228.0,3.54257977]
[1625620597722,1.03073175,34233.0,34229.0,0.00444618]
[1625620597842,1.03003169,34236.0,34232.0,1.7314881]
[1625620598143,1.20167503,34237.0,34234.0,1.00948542]
[1625620598144,1.03002222,34237.0,34234.0,1.00948542]
[1625620598323,1.03001988,34238.0,34234.0,1.30073542]
[1625620598564,1.03001179,34237.0,34235.0,0.00444592]
[1625620598803,1.02932806,34238.0,34235.0,0.00444592]
[1625620599584,1.02932806,34238.0,34234.0,1.30073542]
[1625620599764,1.0292564,34239.0,34234.0,1.30073542]
[1625620599884,1.0292564,34239.0,34238.0,0.48115088]
[1625620600067,1.0292564,34239.0,34238.0,4.36885088]
[1625620600183,1.20077054,34241.0,34238.0,4.36885088]
[1625620600184,1.02865394,34240.0,34238.0,4.36885088]
[1625620600604,1.02865946,34239.0,34238.0,4.36885088]
[1625620601089,0.68551633,34239.0,34238.0,4.36885088]
[1625620602470,1.02818883,34240.0,34238.0,4.36885088]
[1625620602471,0.68550346,34240.0,34238.0,4.36885088]
[1625620602956,0.68519669,34241.0,34238.0,4.36885088]
[1625620603857,0.68519669,34241.0,34240.0,0.24057544]
[1625620605723,1.02770941,34242.0,34240.0,0.24057544]
[1625620605724,0.6845003,34242.0,34240.0,0.24057544]
[1625620607046,0.68429567,34243.0,34240.0,0.24057544]
[1625620607586,0.6842685,34244.0,34240.0,0.24057544]
[1625620607707,0.68425314,34245.0,34240.0,0.24057544]
[1625620608007,0.68424848,34246.0,34244.0,0.46811544]
[1625620608428,0.68424997,34245.0,34244.0,0.46811544]
[1625620609271,0.74124997,34245.0,34244.0,0.46811544]
[1625620609390,2.01239443,34245.0,34244.0,0.24057544]
[1625620609629,3.20949849,34245.0,34244.0,0.24057544]
[1625620609869,4.57746,34245.0,34244.0,0.24057544]
[1625620610292,3.20949849,34245.0,34244.0,0.24057544]
[1625620610650,3.15249849,34245.0,34244.0,0.24057544]
[1625620610771,3.20949849,34245.0,34244.0,0.24057544]
[1625620611251,3.15249849,34245.0,34244.0,0.24057544]
[1625620611429,1.95539443,34245.0,34244.0,0.24057544]
[1625620611971,1.71026443,34245.0,34244.0,0.24057544]
[1625620612333,0.68424997,34245.0,34244.0,0.24057544]
[1625620612634,0.68387029,34246.0,34244.0,0.46614544]
[1625620612754,0.057,34245.0,34244.0,0.46614544]
[1625620613053,0.74090607,34245.0,34244.0,0.46614544]
[1625620613356,0.68390607,34245.0,34244.0,0.46614544]
[1625620613533,0.68391337,34246.0,34244.0,0.46614544]
[1625620614975,1.16476793,34247.0,34244.0,0.46614544]
[1625620615935,1.16476793,34247.0,34246.0,0.24057544]
[1625620616419,1.22176793,34247.0,34246.0,4.98557544]
[1625620617856,2.24704653,34247.0,34246.0,4.98557544]
[1625620618097,2.24704653,34247.0,34246.0,0.24057544]
[1625620618339,3.44311566,34247.0,34240.0,0.24057544]
[1625620618456,3.66474566,34247.0,34240.0,0.24057544]
[1625620618589,0.68364441,34243.0,34240.0,0.24057544]
[1625620618817,0.6836513,34242.0,34240.0,0.24057544]
[1625620619298,0.7406513,34242.0,34240.0,0.24057544]
[1625620619841,0.057,34242.0,34240.0,0.24057544]
[1625620620019,0.24057544,34241.0,34240.0,0.24057544]
[1625620623570,0.24057544,34241.0,34240.0,0.2450272]
[1625620623808,0.057,34242.0,34240.0,0.2450272]
[1625620624294,0.057,34243.0,34241.0,0.00445187]
[1625620624414,0.74068116,34243.0,34241.0,0.00445187]
[1625620624715,1.07581902,34242.0,34241.0,0.00445187]
[1625620624835,1.07581902,34242.0,34240.0,0.24057544]
[1625620625617,0.39211,34242.0,34241.0,0.00445184]
[1625620625737,0.057,34242.0,34241.0,0.00445184]
[1625620625857,0.74091163,34242.0,34241.0,0.00445184]
[1625620625979,0.98148707,34242.0,34241.0,0.00445184]
[1625620626581,0.29757544,34242.0,34241.0,0.00445184]
[1625620627541,0.24057544,34242.0,34241.0,0.00445184]
[1625620627902,0.24057544,34242.0,34241.0,0.26804184]
[1625620628143,0.68388668,34246.0,34241.0,0.26804184]
[1625620628443,0.01346586,34245.0,34242.0,0.00445118]
[1625620628683,0.07046586,34245.0,34242.0,0.00445118]
[1625620629044,0.057,34243.0,34242.0,0.00445118]
[1625620629224,0.057,34243.0,34241.0,0.00445158]
[1625620629526,1.26733384,34243.0,34242.0,0.00445178]
[1625620629766,2.9638461,34243.0,34242.0,0.00445178]
[1625620630126,3.45846474,34243.0,34232.0,0.00445202]
[1625620630248,3.45846474,34243.0,34242.0,0.00445214]
[1625620630608,3.45846474,34243.0,34231.0,0.00445222]
[1625620630908,1.74848527,34243.0,34242.0,0.00445214]
[1625620631029,0.01346784,34242.0,34235.0,4.1021]
[1625620631328,0.01346784,34242.0,34236.0,0.00445144]
[1625620631449,0.057,34240.0,34236.0,0.00445144]
[1625620631748,0.51308273,34241.0,34236.0,0.00445144]
[1625620631870,1.19724768,34242.0,34236.0,0.32304144]
[1625620631991,1.19724768,34242.0,34241.0,0.48115088]
[1625620632171,1.67849875,34243.0,34241.0,0.48115088]
[1625620632409,0.9943244,34243.0,34241.0,0.485602]
[1625620632651,0.9943244,34243.0,34242.0,0.00445112]
[1625620633916,0.48115088,34243.0,34242.0,0.00445112]
[1625620634156,0.53815088,34243.0,34242.0,0.00445112]
[1625620634398,1.05142778,34243.0,34242.0,0.00445112]
[1625620634576,1.74925693,34243.0,34242.0,0.00445112]
[1625620634818,2.77573567,34243.0,34242.0,0.00445112]
[1625620635540,3.97336701,34243.0,34242.0,0.00445112]
[1625620636265,2.77573567,34243.0,34236.0,0.00445143]
[1625620636501,0.57049572,34240.0,34235.0,4.34267544]
[1625620636743,1.25510311,34240.0,34236.0,0.00445156]
[1625620637162,1.19810311,34240.0,34236.0,0.00445156]
[1625620637283,0.51349883,34239.0,34236.0,0.00445156]
[1625620637465,0.057,34238.0,34236.0,0.00445156]
[1625620638124,0.24057544,34238.0,34237.0,0.24057544]
[1625620638665,0.24057544,34238.0,34237.0,0.24502692]
[1625620639806,0.24057544,34238.0,34237.0,0.74653583]
[1625620640948,0.24057544,34238.0,34237.0,1.41481104]
[1625620642572,0.24057544,34238.0,34237.0,0.24502692]
[1625620645460,0.24057544,34238.0,34237.0,0.74688809]
[1625620645760,0.29757544,34238.0,34237.0,0.74688809]
[1625620645881,0.29757544,34238.0,34237.0,0.24502692]
[1625620646362,0.81186508,34238.0,34237.0,0.24502692]
[1625620646786,1.49774831,34238.0,34237.0,0.24502692]
[1625620648046,2.52657718,34238.0,34237.0,0.24502692]
[1625620648765,3.72739917,34238.0,34237.0,0.24502692]
[1625620649067,5.11404557,34238.0,34237.0,0.24502692]
[1625620649846,5.11404557,34238.0,34237.0,0.00445148]
[1625620650147,6.65994992,34238.0,34237.0,0.24057544]
[1625620651169,6.65994992,34238.0,34237.0,0.24502615]
[1625620651530,6.65994992,34238.0,34237.0,0.24057544]
[1625620652972,6.64647658,34238.0,34237.0,0.24057544]
[1625620653211,6.65995117,34238.0,34237.0,0.24057544]
[1625620653452,6.65995117,34238.0,34231.0,1.1793974]
[1625620653696,0.01347474,34237.0,34232.0,0.00445102]
[1625620653820,1.54825867,34235.0,34232.0,0.00445102]
[1625620653941,0.057,34234.0,34232.0,0.00445102]
[1625620654060,6.42481094,34233.0,34232.0,0.00445102]
[1625620654181,6.90596182,34233.0,34232.0,0.00445102]
[1625620654299,4.198,34231.0,34230.0,0.74647359]
[1625620654420,4.255,34231.0,34230.0,0.74647359]
[1625620654545,9.07251143,34231.0,34230.0,0.24057544]
[1625620654842,13.89007186,34231.0,34230.0,0.24057544]
[1625620656347,13.89007186,34231.0,34228.0,0.67440945]
[1625620656589,0.057,34228.0,34226.0,0.67476698]
[1625620656713,0.33605,34228.0,34226.0,0.67476698]
[1625620656828,0.33605,34228.0,34223.0,0.67557799]
[1625620656829,5.85045412,34227.0,34223.0,0.67557799]
[1625620657009,4.30190844,34224.0,34223.0,0.67557799]
[1625620657128,4.35890844,34224.0,34223.0,0.67557799]
[1625620657251,4.35890844,34224.0,34222.0,0.67579734]
[1625620657489,0.057,34224.0,34223.0,0.67578563]
[1625620657732,4.35894713,34224.0,34222.0,0.67586248]
[1625620658032,4.35891328,34223.0,34222.0,0.67586248]
[1625620658211,4.84006416,34223.0,34222.0,0.67586248]
[1625620658451,4.84006416,34223.0,34221.0,0.91602741]
[1625620658452,3.46350008,34223.0,34221.0,0.91602741]
[1625620658751,2.98008019,34222.0,34221.0,0.91602741]
[1625620659412,1.77649939,34222.0,34221.0,0.24057544]
[1625620659652,2.9793465,34222.0,34221.0,0.24057544]
[1625620663439,1.77649939,34222.0,34221.0,0.24057544]
[1625620665062,1.71949939,34222.0,34221.0,0.24057544]
[1625620665303,0.68783414,34222.0,34221.0,0.24057544]
[1625620665965,0.34300612,34222.0,34221.0,0.24057544]
[1625620666566,0.40000612,34222.0,34221.0,0.24057544]
[1625620667046,0.40000612,34222.0,34220.0,0.33708664]
[1625620667286,0.057,34220.0,34219.0,0.33764029]
[1625620668009,0.39629,34220.0,34219.0,0.33764029]
[1625620668189,0.57986544,34220.0,34219.0,0.33764029]
[1625620668969,0.57986544,34220.0,34219.0,0.42624029]
[1625620669452,0.57986544,34220.0,34219.0,0.33764029]
[1625620670717,0.63686544,34220.0,34219.0,0.33764029]
[1625620671253,0.63686544,34220.0,34218.0,0.3374727]
[1625620673899,0.57986544,34220.0,34218.0,0.3374727]
[1625620674258,0.57986544,34220.0,34219.0,0.48115088]